bitfinex-derivatives/quotes_BTCF0:USTF0_20250906
["timestamp","ask_amount","ask_price","bid_price","bid_amount"]
[1757144117427,0.43992373,110890.0,110880.0,0.001]
[1757144118731,0.43992373,110890.0,110880.0,0.02301]
[1757144119526,1.25448373,110890.0,110880.0,0.02301]
[1757144124037,0.43992373,110890.0,110880.0,0.02301]
[1757144124336,1.25448373,110890.0,110880.0,0.02301]
[1757144133045,0.43992373,110890.0,110880.0,0.02301]
[1757144133248,1.25448373,110890.0,110880.0,0.02301]
[1757144144351,1.25448373,110890.0,110880.0,0.10417523]
[1757144145148,1.25448373,110890.0,110880.0,0.02301]
[1757144146252,1.25448373,110890.0,110880.0,0.10417523]
[1757144146857,1.25448373,110890.0,110880.0,0.02301]
[1757144153557,0.43992373,110890.0,110880.0,0.02301]
[1757144153761,1.25444373,110890.0,110880.0,0.02301]
[1757144156660,1.25444373,110890.0,110880.0,0.10417523]
[1757144159263,0.14986,110890.0,110880.0,0.10417523]
[1757144159765,0.43992373,110890.0,110880.0,0.10417523]
[1757144161568,0.47616362,110890.0,110880.0,0.10417523]
[1757144168072,0.47616362,110890.0,110880.0,0.02301]
[1757144168667,0.80246724,110890.0,110880.0,0.001]
[1757144202598,0.80246724,110890.0,110880.0,0.08216523]
[1757144205503,0.80246724,110890.0,110880.0,0.001]
[1757144206902,1.05246724,110890.0,110870.0,0.08130047]
[1757144207107,1.50256724,110880.0,110870.0,0.00013524]
[1757144209505,1.50256724,110880.0,110870.0,0.00113524]
[1757144210403,1.50256724,110880.0,110870.0,0.00013524]
[1757144210608,1.50456724,110880.0,110870.0,0.00113524]
[1757144213411,0.68980724,110880.0,110870.0,0.00113524]
[1757144213612,1.50464724,110880.0,110870.0,0.00113524]
[1757144215615,0.68980724,110880.0,110870.0,0.00113524]
[1757144215815,1.50460724,110880.0,110870.0,0.00113524]
[1757144220517,1.50544724,110880.0,110870.0,0.00113524]
[1757144221014,1.50548724,110880.0,110870.0,0.00113524]
[1757144221410,1.43325914,110880.0,110870.0,0.00113524]
[1757144224422,0.61757914,110880.0,110870.0,0.00113524]
[1757144224720,1.43325914,110880.0,110870.0,0.00113524]
[1757144228119,0.61757914,110880.0,110870.0,0.00113524]
[1757144228419,1.43317914,110880.0,110870.0,0.00113524]
[1757144233424,0.61757914,110880.0,110870.0,0.00113524]
[1757144233623,1.43325914,110880.0,110870.0,0.00113524]
[1757144233825,0.32738957,110880.0,110870.0,0.27445524]
[1757144234014,1.14306957,110880.0,110870.0,0.27445524]
[1757144238129,0.32738957,110880.0,110870.0,0.27445524]
[1757144238429,1.14326957,110880.0,110870.0,0.27445524]
[1757144259259,1.14326957,110880.0,110870.0,0.02445524]
[1757144272062,1.43345914,110880.0,110870.0,0.02445524]
[1757144275767,1.43405914,110880.0,110870.0,0.02445524]
[1757144276964,1.14386957,110880.0,110870.0,0.02445524]
[1757144281065,1.14386957,110880.0,110870.0,0.10562047]
[1757144283475,1.5064896,110880.0,110870.0,0.10562047]
[1757144292580,1.5064896,110880.0,110870.0,0.02445524]
[1757144299386,1.5064896,110880.0,110870.0,0.10562047]
[1757144306396,1.5064896,110880.0,110870.0,0.02445524]
[1757144308286,1.5064896,110880.0,110870.0,0.10562047]
[1757144311500,0.85368,110880.0,110870.0,0.10562047]
[1757144311700,1.5064896,110880.0,110870.0,0.10562047]
[1757144314007,0.85368,110880.0,110870.0,0.10562047]
[1757144314201,0.6900096,110880.0,110870.0,0.10562047]
[1757144314406,1.5059296,110880.0,110870.0,0.10562047]
[1757144316908,0.85312,110880.0,110870.0,0.10562047]
[1757144317106,0.6900096,110880.0,110870.0,0.10562047]
[1757144318913,0.6900096,110880.0,110870.0,0.02445524]
[1757144324512,1.5065296,110880.0,110870.0,0.02445524]
[1757144324909,0.6900096,110880.0,110870.0,0.02445524]
[1757144329215,0.6900096,110880.0,110870.0,0.10562047]
[1757144336925,0.0372,110880.0,110870.0,0.10562047]
[1757144337225,0.6900096,110880.0,110870.0,0.10562047]
[1757144340726,0.6900096,110880.0,110870.0,0.02445524]
[1757144342714,0.0372,110880.0,110870.0,0.02445524]
[1757144342921,0.3496948,110880.0,110870.0,0.60895004]
[1757144343227,0.3496948,110880.0,110870.0,0.69011527]
[1757144343425,0.02329,110880.0,110870.0,0.36371047]
[1757144349528,0.03668,110880.0,110870.0,0.36371047]
[1757144352031,0.03668,110880.0,110870.0,0.35562047]
[1757144354527,0.03668,110880.0,110870.0,0.27445524]
[1757144361941,0.03668,110880.0,110870.0,0.35562047]
[1757144372448,0.03668,110880.0,110870.0,0.27445524]
[1757144377065,0.03668,110880.0,110870.0,0.38816103]
[1757144379266,0.03668,110880.0,110870.0,0.13816103]
[1757144381569,0.03668,110880.0,110870.0,0.83997524]
[1757144382169,0.326717,110880.0,110870.0,0.83997524]
[1757144383070,0.03668,110880.0,110870.0,0.83997524]
[1757144383974,0.03668,110880.0,110870.0,0.83993524]
[1757144384273,0.326717,110880.0,110870.0,0.83993524]
[1757144384772,0.03668,110880.0,110870.0,0.83993524]
[1757144384966,0.326717,110880.0,110870.0,0.83993524]
[1757144394679,0.326717,110880.0,110870.0,0.95364103]
[1757144395581,0.326717,110880.0,110870.0,0.83993524]
[1757144396269,0.326717,110880.0,110870.0,0.92104955]
[1757144398782,0.326717,110880.0,110870.0,0.10556955]
[1757144398981,0.326717,110880.0,110870.0,0.92076955]
[1757144399876,0.326717,110880.0,110870.0,2.42076955]
[1757144400781,0.326717,110880.0,110870.0,0.92076955]
[1757144401083,0.326717,110880.0,110870.0,2.42076955]
[1757144403480,0.36299258,110880.0,110870.0,2.74708213]
[1757144404683,0.36299258,110880.0,110870.0,2.42076955]
[1757144404877,0.36299258,110880.0,110870.0,2.74708213]
[1757144405986,0.36299258,110880.0,110870.0,2.42076955]
[1757144406186,0.36299258,110880.0,110870.0,2.74708213]
[1757144408396,0.36299258,110880.0,110870.0,1.24708213]
[1757144408989,0.36299258,110880.0,110870.0,2.74708213]
[1757144410792,0.36299258,110880.0,110870.0,2.42076955]
[1757144410985,0.36299258,110880.0,110870.0,2.74708213]
[1757144414691,0.36299258,110880.0,110870.0,2.66596782]
[1757144415594,0.36299258,110880.0,110870.0,2.33965524]
[1757144415793,0.36299258,110880.0,110870.0,2.66596782]
[1757144417594,0.36299258,110880.0,110870.0,2.74709458]
[1757144422194,0.03668,110880.0,110870.0,2.74709458]
[1757144422395,0.36299258,110880.0,110870.0,2.74709458]
[1757144423796,0.36299258,110880.0,110870.0,1.93189458]
[1757144423999,0.36299258,110880.0,110870.0,2.74721458]
[1757144424598,0.36299258,110880.0,110870.0,1.24721458]
[1757144427500,0.03668,110880.0,110870.0,1.24721458]
[1757144427700,0.36299258,110880.0,110870.0,1.16608782]
[1757144429807,0.36299258,110880.0,110870.0,1.27979361]
[1757144430105,0.03668,110880.0,110870.0,1.27979361]
[1757144430303,0.36299258,110880.0,110870.0,1.27979361]
[1757144430905,0.36299258,110880.0,110870.0,0.95348103]
[1757144433207,0.36299258,110880.0,110870.0,0.92089477]
[1757144439616,0.36299258,110880.0,110870.0,1.24720735]
[1757144442016,0.36299258,110880.0,110870.0,0.92089477]
[1757144443318,0.36299258,110880.0,110870.0,0.83977524]
[1757144448432,0.36299258,110880.0,110870.0,0.95348103]
[1757144453227,0.36299258,110880.0,110870.0,0.83977524]
[1757144453837,0.36299258,110880.0,110870.0,0.83961524]
[1757144454438,0.68930516,110880.0,110870.0,0.83961524]
[1757144455132,0.36299258,110880.0,110870.0,0.83961524]
[1757144460541,0.03668,110880.0,110870.0,0.83961524]
[1757144460743,0.36299258,110880.0,110870.0,0.83961524]
[1757144465446,0.32674651,110880.0,110870.0,0.83961524]
[1757144468751,0.32674651,110880.0,110870.0,0.95332103]
[1757144472352,0.32674651,110880.0,110870.0,0.13816103]
[1757144472551,0.32674651,110880.0,110870.0,0.95328103]
[1757144472852,0.32674651,110880.0,110870.0,0.83957524]
[1757144473852,0.32674651,110880.0,110870.0,0.95328103]
[1757144474255,0.32674651,110880.0,110870.0,0.83957524]
[1757144485960,0.32674651,110880.0,110870.0,0.95328103]
[1757144487259,0.03668,110880.0,110870.0,0.95328103]
[1757144487559,0.32674651,110880.0,110870.0,0.83957524]
[1757144491760,0.03668,110880.0,110870.0,0.83957524]
[1757144491960,0.32674651,110880.0,110870.0,0.83957524]
[1757144498068,0.32674651,110880.0,110870.0,0.92068572]
[1757144503779,0.32674651,110880.0,110870.0,0.10556572]
[1757144504078,0.32674651,110880.0,110870.0,0.92060572]
[1757144506284,0.32674651,110880.0,110870.0,0.83949524]
[1757144510183,0.32674651,110880.0,110870.0,0.92060003]
[1757144512679,0.32674651,110880.0,110870.0,0.92056003]
[1757144522489,0.32674651,110880.0,110870.0,0.83945524]
[1757144522684,0.32674651,110880.0,110870.0,0.95316103]
[1757144526495,0.03668,110880.0,110870.0,0.95316103]
[1757144526696,0.32674651,110880.0,110870.0,0.95316103]
[1757144527492,0.68934672,110880.0,110870.0,0.95316103]
[1757144529498,0.03668,110880.0,110870.0,0.95316103]
[1757144529691,0.68934672,110880.0,110870.0,0.95316103]
[1757144532701,0.68934672,110880.0,110870.0,0.83945524]
[1757144536999,0.03668,110880.0,110870.0,0.83945524]
[1757144537189,0.68934672,110880.0,110870.0,0.95316103]
[1757144538392,0.68934672,110880.0,110870.0,0.83945524]
[1757144544403,0.68934672,110880.0,110870.0,0.95316103]
[1757144544807,0.03668,110880.0,110870.0,0.95316103]
[1757144544999,0.68934672,110880.0,110870.0,0.95316103]
[1757144547297,0.03668,110880.0,110870.0,0.95316103]
[1757144547502,0.68934672,110880.0,110870.0,0.95316103]
[1757144547902,0.68934672,110880.0,110870.0,0.83945524]
[1757144548311,0.68934672,110880.0,110870.0,0.95316103]
[1757144549510,0.03668,110880.0,110870.0,0.95316103]
[1757144549711,0.68934672,110880.0,110870.0,0.95316103]
[1757144551313,0.03668,110880.0,110870.0,0.95316103]
[1757144551513,0.68934672,110880.0,110870.0,0.95316103]
[1757144553014,0.03668,110880.0,110870.0,0.95316103]
[1757144553215,0.68934672,110880.0,110870.0,0.95316103]
[1757144555718,0.03668,110880.0,110870.0,0.95316103]
[1757144556016,0.68934672,110880.0,110870.0,0.95316103]
[1757144559221,0.03668,110880.0,110870.0,0.95316103]
[1757144559520,0.68934672,110880.0,110870.0,0.95316103]
[1757144567218,0.03668,110880.0,110870.0,0.95316103]
[1757144567418,0.68934672,110880.0,110870.0,0.95316103]
[1757144570430,0.68934672,110880.0,110870.0,0.83945524]
[1757144573837,0.03668,110880.0,110870.0,0.83945524]
[1757144574038,0.68934672,110880.0,110870.0,0.83945524]
[1757144581742,0.68934672,110880.0,110870.0,0.95316103]
[1757144588552,0.68934672,110880.0,110870.0,0.83945524]
[1757144589453,0.32677048,110880.0,110870.0,0.83945524]
[1757144590055,0.32677048,110880.0,110870.0,0.92058667]
[1757144599861,0.03668,110880.0,110870.0,0.92058667]
[1757144600056,0.32677048,110880.0,110870.0,0.92058667]
[1757144606660,0.32677048,110880.0,110870.0,0.83945524]
[1757144609667,0.32677048,110880.0,110870.0,0.95316103]
[1757144619477,0.32677048,110880.0,110870.0,0.96125103]
[1757144624278,0.002,110880.0,110870.0,0.84754524]
[1757144624477,0.31442048,110880.0,110870.0,0.84754524]
[1757144625178,0.02433,110880.0,110870.0,0.84754524]
[1757144625382,0.31442048,110880.0,110870.0,0.84754524]
[1757144625871,0.02433,110880.0,110870.0,0.84754524]
[1757144626073,0.31442048,110880.0,110870.0,0.84754524]
[1757144626280,0.02433,110880.0,110870.0,0.84754524]
[1757144626479,0.31442048,110880.0,110870.0,0.84754524]
[1757144628382,0.02433,110880.0,110870.0,0.84754524]
[1757144628575,0.31442048,110880.0,110870.0,0.84754524]
[1757144630182,0.31442048,110880.0,110870.0,0.92867077]
[1757144640192,0.31442048,110880.0,110870.0,0.84754524]
[1757144640788,0.02433,110880.0,110870.0,0.84754524]
[1757144641086,0.31442048,110880.0,110870.0,0.84754524]
[1757144642292,0.32778048,110880.0,110870.0,0.83945524]
[1757144651498,0.69037892,110880.0,110870.0,0.83945524]
[1757144651700,0.69037892,110880.0,110870.0,0.95316103]
[1757144680518,0.69037892,110880.0,110870.0,0.97177578]
[1757144684723,0.69037892,110880.0,110870.0,0.85806999]
[1757144685424,0.69037892,110880.0,110870.0,0.93916983]
[1757144689127,0.69037892,110880.0,110870.0,0.12416983]
[1757144689426,0.69037892,110880.0,110870.0,0.93868983]
[1757144690729,0.69037892,110880.0,110870.0,0.12416983]
[1757144691027,0.69037892,110880.0,110870.0,0.93868983]
[1757144692729,0.69037892,110880.0,110870.0,0.12416983]
[1757144693029,0.69037892,110880.0,110870.0,0.93868983]
[1757144695527,0.69037892,110880.0,110870.0,0.85758999]
[1757144700126,0.69037892,110880.0,110870.0,0.97129578]
[1757144703230,0.69037892,110880.0,110870.0,0.15677578]
[1757144703436,0.69037892,110880.0,110870.0,0.97125578]
[1757144704227,0.69037892,110880.0,110870.0,0.15677578]
[1757144704423,0.69037892,110880.0,110870.0,0.97125578]
[1757144705039,0.69037892,110880.0,110870.0,0.15677578]
[1757144705334,0.69037892,110880.0,110870.0,0.97125578]
[1757144706638,0.69037892,110880.0,110870.0,0.85754999]
[1757144711034,0.69037892,110880.0,110870.0,0.93864268]
[1757144711433,0.32779893,110880.0,110870.0,0.93864268]
[1757144718755,0.32779893,110880.0,110870.0,0.12416268]
[1757144718961,0.32779893,110880.0,110870.0,0.93860268]
[1757144722757,0.32779893,110880.0,110870.0,0.85750999]
[1757144723157,0.32779893,110880.0,110870.0,0.93860146]
[1757144723358,0.32779893,110880.0,110870.0,0.85750999]
[1757144728260,0.32779893,110880.0,110870.0,0.97121578]
[1757144730161,0.32779893,110880.0,110870.0,0.15677578]
[1757144730360,0.32779893,110880.0,110870.0,0.97117578]
[1757144744078,0.32779893,110880.0,110870.0,0.85746999]
[1757144747472,0.61790786,110880.0,110870.0,0.04306999]
[1757144747680,0.61790786,110880.0,110870.0,0.89659143]
[1757144747973,0.03769,110880.0,110870.0,0.89659143]
[1757144748178,0.61790786,110880.0,110870.0,0.91883143]
[1757144750182,0.03769,110880.0,110870.0,0.91883143]
[1757144750382,0.61790786,110880.0,110870.0,0.91883143]
[1757144753885,0.61790786,110880.0,110870.0,0.91959143]
[1757144769488,0.03769,110880.0,110870.0,0.91959143]
[1757144769683,0.61790786,110880.0,110870.0,0.91959143]
[1757144771490,0.69050358,110880.0,110870.0,0.91959143]
[1757144778798,0.69050358,110880.0,110870.0,0.10447143]
[1757144779000,0.69050358,110880.0,110870.0,0.91959143]
[1757144779700,0.69050358,110880.0,110870.0,0.93751001]
[1757144782800,0.69050358,110880.0,110870.0,0.85641382]
[1757144792706,0.69050358,110880.0,110870.0,0.93751001]
[1757144820330,0.69050358,110880.0,110870.0,0.12239001]
[1757144820726,0.69050358,110880.0,110870.0,0.93707001]
[1757144821931,0.69050358,110880.0,110870.0,0.85597382]
[1757144822523,0.69050358,110880.0,110870.0,0.83805524]
[1757144822829,0.69050358,110880.0,110870.0,0.91916388]
[1757144833533,0.61799196,110880.0,110870.0,0.91916388]
[1757144842943,0.03769,110880.0,110870.0,0.9372288]
[1757144843344,0.61799196,110880.0,110870.0,0.9372288]
[1757144844938,0.61599196,110880.0,110870.0,0.9362288]
[1757144845138,0.61699196,110880.0,110870.0,0.9372288]
[1757144862257,0.61699196,110880.0,110870.0,0.85612016]
[1757144862859,0.61699196,110880.0,110870.0,0.93722296]
[1757144864858,0.61699196,110880.0,110870.0,0.85612016]
[1757144886379,0.61699196,110880.0,110870.0,0.86425016]
[1757144887286,0.61699196,110880.0,110870.0,0.94537774]
[1757144889191,0.61699196,110880.0,110870.0,0.93724774]
[1757144889691,0.02333,110880.0,110870.0,0.86425016]
[1757144889988,0.31348098,110880.0,110870.0,0.86425016]
[1757144890984,0.31348098,110880.0,110870.0,0.94535147]
[1757144893590,0.6760457,110880.0,110870.0,0.94535147]
[1757144898094,0.6760457,110880.0,110870.0,0.86425016]
[1757144898494,0.6760457,110880.0,110870.0,0.84618524]
[1757144899193,0.6760457,110880.0,110870.0,0.95989103]
[1757144899791,0.02333,110880.0,110870.0,0.95989103]
[1757144900000,0.6760457,110880.0,110870.0,1.04096815]
[1757144900392,0.6760457,110880.0,110870.0,0.92726236]
[1757144901593,0.6537157,110880.0,110870.0,0.92726236]
[1757144901793,0.6760357,110880.0,110870.0,0.92726236]
[1757144901994,0.02332,110880.0,110870.0,0.92726236]
[1757144902195,0.6760357,110880.0,110870.0,0.92726236]
[1757144910298,0.6760357,110880.0,110870.0,0.92726945]
[1757144913407,0.02332,110880.0,110870.0,0.92726945]
[1757144913602,0.6760357,110880.0,110870.0,0.92726945]
[1757144914501,0.02332,110880.0,110870.0,0.92726945]
[1757144914707,0.6760357,110880.0,110870.0,0.92726945]
[1757144915403,0.02332,110880.0,110870.0,0.92726945]
[1757144915609,0.001,110880.0,110870.0,0.92726945]
[1757144915810,0.001,110880.0,110870.0,1.17726945]
[1757144916204,0.001,110880.0,110870.0,1.09618524]
[1757144917005,0.6537157,110880.0,110870.0,1.09618524]
[1757144918313,0.02332,110880.0,110870.0,0.85218524]
[1757144918814,0.6760357,110880.0,110870.0,0.85218524]
[1757144919112,0.6760357,110880.0,110870.0,0.93327315]
[1757144919308,0.6760357,110880.0,110870.0,0.85218524]
[1757144921709,0.34967785,110880.0,110870.0,0.85218524]
[1757144921916,0.6760357,110880.0,110870.0,0.85218524]
[1757144922316,0.02332,110880.0,110870.0,0.85218524]
[1757144922516,0.6760357,110880.0,110870.0,0.85218524]
[1757144924317,0.6760357,110880.0,110870.0,0.03150524]
[1757144924515,0.6894657,110880.0,110870.0,0.02337524]
[1757144924722,0.6894657,110880.0,110870.0,0.84421524]
[1757144925022,0.6894657,110880.0,110870.0,0.92530665]
[1757144926520,0.6894657,110880.0,110870.0,0.92534665]
[1757144928614,0.6894657,110880.0,110870.0,0.10446665]
[1757144928816,0.6894657,110880.0,110870.0,0.92550665]
[1757144929025,0.6894657,110880.0,110870.0,0.92546665]
[1757144929518,0.03675,110880.0,110870.0,0.92546665]
[1757144929718,0.6894657,110880.0,110870.0,0.92546665]
[1757144931518,0.03675,110880.0,110870.0,0.92546665]
[1757144931718,0.6894657,110880.0,110870.0,0.92546665]
[1757144932117,0.6894657,110880.0,110870.0,0.10446665]
[1757144932318,0.6894657,110880.0,110870.0,0.92626665]
[1757144934617,0.03675,110880.0,110870.0,0.92626665]
[1757144934818,0.6894657,110880.0,110870.0,0.92626665]
[1757144936630,0.03675,110880.0,110870.0,0.92626665]
[1757144936827,0.6894657,110880.0,110870.0,0.92626665]
[1757144937819,0.6894657,110880.0,110870.0,0.84517524]
[1757144955440,0.32684719,110880.0,110870.0,0.84517524]
[1757144962834,0.32684719,110880.0,110870.0,0.95888103]
[1757144964840,0.32684719,110880.0,110870.0,0.84517524]
[1757144974347,0.32684719,110880.0,110870.0,0.95888103]
[1757144980548,0.32684719,110880.0,110870.0,0.84517524]
[1757144982552,0.32684719,110880.0,110870.0,0.95888103]
[1757144982956,0.32684719,110880.0,110870.0,0.84517524]
[1757144984050,0.31341719,110880.0,110870.0,1.10779524]
[1757144984354,0.31341719,110880.0,110870.0,1.22150103]
[1757144992761,0.29109719,110880.0,110870.0,1.22150103]
[1757144998267,0.001,110880.0,110870.0,1.22150103]
[1757144998462,0.29109719,110880.0,110870.0,1.22150103]
[1757144999555,0.29109719,110880.0,110870.0,1.30261142]
[1757144999767,0.29109719,110880.0,110870.0,1.18890563]
[1757145006270,0.001,110880.0,110870.0,1.18890563]
[1757145006464,0.29109719,110880.0,110870.0,1.18890563]
[1757145006770,0.29109719,110880.0,110870.0,1.10779524]
[1757145008164,0.001,110880.0,110870.0,1.10779524]
[1757145008361,0.29109719,110880.0,110870.0,1.10779524]
[1757145009066,0.29109719,110880.0,110870.0,1.22150103]
[1757145011681,0.29109719,110880.0,110870.0,1.10779524]
[1757145017488,0.32732622,110880.0,110870.0,1.10779524]
[1757145018488,0.001,110880.0,110870.0,1.10779524]
[1757145018689,0.32732622,110880.0,110870.0,1.10779524]
[1757145020690,0.32732622,110880.0,110870.0,1.18890848]
[1757145023891,0.32732622,110880.0,110870.0,1.10779524]
[1757145025592,0.32732622,110880.0,110870.0,1.22150103]
[1757145026496,0.32732622,110880.0,110870.0,1.10779524]
[1757145029597,0.32732622,110880.0,110870.0,1.22150103]
[1757145032796,0.65365244,110880.0,110870.0,1.22150103]
[1757145039206,0.32732622,110880.0,110870.0,0.97150103]
[1757145039602,0.32732622,110880.0,110870.0,0.85779524]
[1757145045511,0.32732622,110880.0,110870.0,0.93891897]
[1757145046011,0.001,110880.0,110870.0,0.93891897]
[1757145046211,0.32732622,110880.0,110870.0,0.93891897]
[1757145048116,0.001,110880.0,110870.0,0.93891897]
[1757145048311,0.32732622,110880.0,110870.0,0.93891897]
[1757145049513,0.32732622,110880.0,110870.0,0.85779524]
[1757145051005,0.65365244,110880.0,110870.0,0.85779524]
[1757145057112,0.32732622,110880.0,110870.0,0.85779524]
[1757145057313,0.32732622,110880.0,110870.0,0.97150103]
[1757145058922,0.35048622,110880.0,110870.0,0.97150103]
[1757145059622,0.32732622,110880.0,110870.0,0.97150103]
[1757145060613,0.32732622,110880.0,110870.0,0.85779524]
[1757145061620,0.001,110880.0,110870.0,1.27431116]
[1757145061816,0.001,110880.0,110870.0,1.35542289]
[1757145062024,0.32732622,110880.0,110870.0,1.27431116]
[1757145062220,0.001,110880.0,110870.0,1.35537459]
[1757145062414,0.32732622,110880.0,110870.0,1.35537459]
[1757145063229,0.001,110880.0,110870.0,1.35537459]
[1757145063418,0.001,110880.0,110870.0,0.53357459]
[1757145063618,0.001,110880.0,110870.0,1.35173459]
[1757145064331,0.001,110880.0,110870.0,1.35165459]
[1757145066231,0.32732622,110880.0,110870.0,1.35165459]
[1757145068033,0.001,110880.0,110870.0,1.35165459]
[1757145069829,0.001,110880.0,110870.0,0.44338489]
[1757145070134,0.35048622,110880.0,110870.0,1.26114489]
[1757145070526,0.35048622,110880.0,110870.0,0.85371524]
[1757145070724,0.35048622,110880.0,110870.0,1.29374725]
[1757145071429,0.35048622,110880.0,110870.0,1.18004146]
[1757145071635,0.35048622,110880.0,110870.0,1.29374725]
[1757145072436,0.69048244,110880.0,110870.0,0.13708103]
[1757145072728,0.36415622,110880.0,110870.0,0.92197473]
[1757145075135,0.36415622,110880.0,110870.0,0.93489473]
[1757145075336,0.02416,110880.0,110870.0,1.26122095]
[1757145075633,0.32732622,110880.0,110870.0,1.26122095]
[1757145079438,0.02416,110880.0,110870.0,0.93489473]
[1757145079734,0.02416,110880.0,110870.0,0.85389524]
[1757145080134,0.02416,110880.0,110870.0,0.96760103]
[1757145080734,0.001,110880.0,110870.0,1.25762735]
[1757145080939,0.001,110880.0,110870.0,1.25733678]
[1757145082437,0.001,110880.0,110870.0,0.96731046]
[1757145082638,0.001,110880.0,110870.0,0.85389524]
[1757145083541,0.02258,110880.0,110870.0,0.85389524]
[1757145084844,0.02258,110880.0,110870.0,0.96732776]
[1757145085034,0.001,110880.0,110870.0,0.96732776]
[1757145087044,0.001,110880.0,110870.0,0.85389524]
[1757145088748,0.001,110880.0,110870.0,0.9673489]
[1757145089143,0.02258,110880.0,110870.0,0.9673489]
[1757145090743,0.02258,110880.0,110870.0,0.85389524]
[1757145091046,0.02258,110880.0,110870.0,0.96735833]
[1757145098554,0.001,110880.0,110870.0,0.96735833]
[1757145100854,0.001,110880.0,110870.0,0.85389524]
[1757145102157,0.001,110880.0,110870.0,0.96735833]
[1757145110956,0.001,110880.0,110870.0,0.85389524]
[1757145130583,0.001,110880.0,110870.0,0.96749437]
[1757145136986,0.001,110880.0,110870.0,0.85389524]
[1757145138188,0.02288,110880.0,110870.0,0.85389524]
[1757145139592,0.34916028,110880.0,110870.0,1.18017552]
[1757145142196,0.34916028,110880.0,110870.0,1.29377939]
[1757145148804,0.34916028,110880.0,110870.0,0.47617939]
[1757145148991,0.34916028,110880.0,110870.0,1.29341939]
[1757145149701,0.36245028,110880.0,110870.0,1.29341939]
[1757145150206,0.36245028,110880.0,110870.0,2.79341939]
[1757145151303,0.68873056,110880.0,110870.0,1.64989911]
[1757145151506,0.68873056,110880.0,110870.0,0.95425911]
[1757145152798,0.93873056,110880.0,110870.0,0.13697911]
[1757145153004,0.93873056,110880.0,110870.0,0.95465911]
[1757145155003,0.93873056,110880.0,110870.0,0.84105524]
[1757145159103,0.93873056,110880.0,110870.0,0.02337524]
[1757145159306,0.68873056,110880.0,110870.0,0.84113524]
[1757145160905,0.68873056,110880.0,110870.0,0.02337524]
[1757145161206,0.68873056,110880.0,110870.0,0.95469911]
[1757145162006,0.68873056,110880.0,110870.0,1.03575285]
[1757145162200,0.68873056,110880.0,110870.0,0.92214898]
[1757145163307,0.68873056,110880.0,110870.0,0.92206898]
[1757145169012,0.68873056,110880.0,110870.0,0.84101524]
[1757145170412,0.68873056,110880.0,110870.0,0.84077524]
[1757145172518,0.68873056,110880.0,110870.0,0.95437911]
[1757145174924,0.68873056,110880.0,110870.0,0.84077524]
[1757145180030,0.68873056,110880.0,110870.0,0.02337524]
[1757145180327,0.68873056,110880.0,110870.0,0.84053524]
[1757145181427,0.68873056,110880.0,110870.0,0.95413911]
[1757145184932,0.68873056,110880.0,110870.0,0.84053524]
[1757145186332,0.68873056,110880.0,110870.0,0.95413911]
[1757145190739,0.68873056,110880.0,110870.0,1.03526582]
[1757145191129,0.68873056,110880.0,110870.0,0.92166195]
[1757145195944,0.68873056,110880.0,110870.0,0.10450195]
[1757145196243,0.68873056,110880.0,110870.0,0.92162195]
[1757145196440,0.68873056,110880.0,110870.0,0.84049524]
[1757145196742,0.68873056,110880.0,110870.0,0.13697911]
[1757145196936,0.68873056,110880.0,110870.0,0.95409911]
[1757145198350,0.68873056,110880.0,110870.0,0.13697911]
[1757145198550,0.68873056,110880.0,110870.0,0.95409911]
[1757145198746,0.68873056,110880.0,110870.0,0.13697911]
[1757145198940,0.68873056,110880.0,110870.0,0.95409911]
[1757145199451,0.32627738,110880.0,110870.0,0.95409911]
[1757145209354,0.32627738,110880.0,110870.0,0.95405911]
[1757145211960,0.32627738,110880.0,110870.0,0.13697911]
[1757145212155,0.32627738,110880.0,110870.0,0.95405911]
[1757145213763,0.32627738,110880.0,110870.0,0.13697911]
[1757145213960,0.32627738,110880.0,110870.0,0.95405911]
[1757145217364,0.32627738,110880.0,110870.0,0.84045524]
[1757145227369,0.32627738,110880.0,110870.0,0.95405911]
[1757145231277,0.61638476,110880.0,110870.0,0.95405911]
[1757145231979,0.32627738,110880.0,110870.0,0.95405911]
[1757145238791,0.32627738,110880.0,110870.0,0.13697911]
[1757145238977,0.32627738,110880.0,110870.0,0.95397911]
[1757145250702,0.61638476,110880.0,110870.0,0.95397911]
[1757145254502,0.61638476,110880.0,110870.0,0.84037524]
[1757145254905,0.61638476,110880.0,110870.0,0.84850524]
[1757145256507,0.61638476,110880.0,110870.0,0.96210911]
[1757145260502,0.61638476,110880.0,110870.0,0.95397911]
[1757145261405,0.36254321,110880.0,110870.0,0.95397911]
[1757145261613,0.68891642,110880.0,110870.0,0.95397911]
[1757145261812,0.68891642,110880.0,110870.0,1.03509828]
[1757145262113,0.68891642,110880.0,110870.0,0.84037524]
[1757145269114,0.68891642,110880.0,110870.0,0.95397911]
[1757145304736,0.68891642,110880.0,110870.0,0.84037524]
[1757145309032,0.68891642,110880.0,110870.0,0.02337524]
[1757145309237,0.01363,110870.0,110860.0,0.05]
[1757145309531,0.01363,110870.0,110860.0,0.82045539]
[1757145309532,0.68874642,110870.0,110860.0,0.82045539]
[1757145311440,0.69074642,110870.0,110860.0,0.82045539]
[1757145312034,0.69961095,110870.0,110860.0,0.82045539]
[1757145313239,0.37323774,110870.0,110860.0,0.15013539]
[1757145313436,0.69961095,110870.0,110860.0,0.96665539]
[1757145313734,0.94961095,110870.0,110860.0,0.05]
[1757145319842,1.76617095,110870.0,110860.0,0.05]
[1757145321441,1.40365396,110870.0,110860.0,0.05]
[1757145330247,0.29686453,110870.0,110860.0,0.06903]
[1757145330448,0.58709396,110870.0,110860.0,0.06903]
[1757145331647,0.58709396,110870.0,110860.0,0.05]
[1757145339253,0.33709396,110870.0,110860.0,0.05]
[1757145360372,0.33709396,110870.0,110860.0,0.06903]
[1757145369183,0.32822943,110870.0,110860.0,0.06903]
[1757145374193,0.33728614,110870.0,110860.0,0.06903]
[1757145376190,0.32822943,110870.0,110860.0,0.06903]
[1757145377189,0.32822943,110870.0,110860.0,0.15000383]
[1757145377385,0.32822943,110870.0,110860.0,0.06903]
[1757145383496,0.3644406,110870.0,110860.0,0.06903]
[1757145384197,0.038,110870.0,110860.0,0.06903]
[1757145384396,0.3644406,110870.0,110860.0,0.06903]
[1757145390694,0.3644406,110870.0,110860.0,0.31903]
[1757145393804,0.3644406,110870.0,110860.0,0.40000383]
[1757145399305,0.3644406,110870.0,110860.0,0.15000383]
[1757145408712,0.3644406,110870.0,110860.0,0.06903]
[1757145418627,0.3644406,110870.0,110860.0,0.15000383]
[1757145422435,0.3644406,110870.0,110860.0,0.06903]
[1757145422637,0.038,110870.0,110860.0,0.06903]
[1757145422831,0.3644406,110870.0,110860.0,0.06903]
[1757145423128,0.3644406,110870.0,110860.0,0.15000383]
[1757145425036,0.038,110870.0,110860.0,0.15000383]
[1757145425335,0.3644406,110870.0,110860.0,0.15000383]